bitfinex/quotes_ETHUSD_20260102
["timestamp","ask_amount","ask_price","bid_price","bid_amount"]
[1767387597459,5.23322368,3119.4,3117.6,2.32673593]
[1767387597659,0.08952695,3120.7,3117.8,2.32673593]
[1767387597660,2.02747899,3119.8,3117.8,2.32673593]
[1767387597859,0.842,3119.7,3117.8,2.32673593]
[1767387598062,3.20517246,3120.0,3118.0,2.3247151]
[1767387598389,6.41022094,3120.1,3118.2,2.32673593]
[1767387598563,11.6448305,3120.1,3118.2,2.32673593]
[1767387598767,2.02949982,3120.0,3118.2,2.32673593]
[1767387599090,2.02949982,3119.8,3118.2,2.32673593]
[1767387599383,0.842,3119.9,3118.2,2.32673593]
[1767387599384,2.3166498,3119.7,3118.2,2.32673593]
[1767387599562,2.3166498,3119.7,3117.8,2.3669578]
[1767387599761,2.3166498,3119.7,3117.3,2.3679578]
[1767387599762,2.02949982,3119.2,3117.3,2.3679578]
[1767387599986,2.02949982,3119.0,3117.5,2.3669578]
[1767387600189,2.02949982,3119.0,3117.3,0.001]
[1767387600384,2.02949982,3118.8,3117.3,0.001]
[1767387600584,4.25120859,3118.9,3117.3,2.3679578]
[1767387600892,2.02949982,3118.8,3117.3,2.3679578]
[1767387601107,0.842,3118.8,3117.3,2.3679578]
[1767387601475,0.842,3118.8,3117.3,2.3696578]
[1767387601676,0.74574672,3118.7,3117.5,2.3669578]
[1767387602607,0.74574672,3118.7,3117.6,5.57455338]
[1767387602808,2.02949982,3119.6,3117.7,2.3669578]
[1767387603009,4.04764192,3119.5,3117.7,2.3669578]
[1767387603209,0.842,3119.4,3117.7,2.3669578]
[1767387603419,3.20547963,3119.7,3117.7,2.3669578]
[1767387603582,0.842,3119.3,3117.9,2.3669578]
[1767387603784,3.20525358,3119.9,3118.1,2.3669578]
[1767387603785,0.842,3119.2,3118.1,2.3669578]
[1767387603999,3.20486934,3120.3,3118.3,2.3669578]
[1767387604000,0.842,3119.3,3118.3,2.3669578]
[1767387604280,0.842,3119.5,3118.3,2.3669578]
[1767387604707,0.842,3119.5,3118.5,2.3669578]
[1767387604882,2.02949982,3120.4,3118.7,2.3669578]
[1767387605082,0.842,3120.3,3118.7,2.3669578]
[1767387605512,0.842,3120.2,3118.7,2.3669578]
[1767387606811,0.002,3120.5,3118.9,2.3669578]
[1767387607003,0.842,3120.4,3118.9,2.3669578]
[1767387607321,0.002,3120.5,3119.1,2.3669578]
[1767387607511,0.002,3120.9,3120.0,2.3669578]
[1767387609328,0.002,3120.9,3119.6,3.20553206]
[1767387609532,0.002,3120.9,3119.7,3.20540916]
[1767387609736,0.002,3120.9,3119.7,2.3669578]
[1767387609917,0.841,3120.8,3120.0,5.572086]
[1767387610233,0.002,3120.9,3120.0,5.572086]
[1767387610427,0.841,3120.8,3120.0,5.572086]
[1767387610621,0.841,3120.8,3120.0,2.3669578]
[1767387611225,0.841,3120.8,3120.0,5.5720797]
[1767387611420,0.841,3120.8,3120.1,0.55720797]
[1767387614039,4.04530917,3120.8,3119.8,3.76255953]
[1767387614241,7.25161834,3120.8,3119.8,0.55724232]
[1767387614457,7.25161834,3120.8,3119.6,2.3669578]
[1767387614815,3.20451195,3120.6,3119.1,5.57294641]
[1767387615314,6.4090239,3120.6,3119.2,2.3669578]
[1767387615747,0.002,3120.8,3119.2,2.3669578]
[1767387615942,0.841,3120.5,3119.4,2.3669578]
[1767387617049,0.002,3120.8,3119.6,2.3669578]
[1767387617252,0.841,3120.7,3119.6,2.3669578]
[1767387617633,0.002,3120.8,3119.6,2.3669578]
[1767387617827,0.841,3120.7,3119.8,2.3669578]
[1767387619454,0.841,3120.7,3119.8,5.57224617]
[1767387619652,7.24988742,3120.7,3119.0,2.3669578]
[1767387619954,9.27938724,3120.7,3119.3,2.3669578]
[1767387620254,0.92813872,3120.6,3119.4,3.44237668]
[1767387620560,0.92813872,3120.6,3119.4,0.23669578]
[1767387620729,0.92813872,3120.6,3119.4,3.4424185]
[1767387621360,0.92813872,3120.6,3119.4,0.23669578]
[1767387621537,3.20471734,3120.4,3119.4,0.23669578]
[1767387621921,3.20471734,3120.4,3119.4,3.44243173]
[1767387622126,3.20471734,3120.4,3119.4,3.44242493]
[1767387622361,4.22541855,3120.5,3119.4,5.80938273]
[1767387624385,1.0207526,3120.5,3119.4,9.01512742]
[1767387624586,1.0207526,3120.5,3119.5,3.26847054]
[1767387626091,4.22537748,3120.5,3119.5,3.26847054]
[1767387626302,4.22537748,3120.5,3119.5,6.47410587]
[1767387627068,1.0207526,3120.5,3119.6,2.3669578]
[1767387627259,0.002,3120.7,3119.8,2.3669578]
[1767387627995,0.002,3120.7,3120.0,2.4446516]
[1767387628161,0.841,3120.6,3120.0,2.4446516]
[1767387629092,0.002,3120.7,3120.0,2.4446516]
[1767387629387,0.002,3120.7,3120.1,3.33016295]
[1767387629566,0.002,3120.7,3120.2,2.42900831]
[1767387629967,0.841,3120.6,3120.2,2.42900831]
[1767387630372,0.002,3120.7,3120.2,2.42900831]
[1767387630567,0.002,3120.7,3120.2,5.63392695]
[1767387630777,0.841,3120.6,3120.2,6.60638242]
[1767387630983,0.002,3120.7,3120.2,6.60638242]
[1767387631192,0.841,3120.6,3120.2,6.60638242]
[1767387631393,0.841,3120.6,3120.2,3.40146378]
[1767387631967,0.841,3120.6,3120.2,6.60637984]
[1767387633196,0.841,3120.6,3120.2,3.40146378]
[1767387633382,0.841,3120.6,3119.9,5.63418198]
[1767387633577,0.841,3120.6,3120.0,3.205124]
[1767387634189,0.841,3120.6,3119.9,5.63418267]
[1767387634501,0.841,3120.6,3119.9,5.63420422]
[1767387634699,0.841,3120.6,3119.9,2.42900831]
[1767387634928,4.04554217,3120.6,3119.6,2.42900831]
[1767387635090,0.40475422,3120.5,3119.6,2.42900831]
[1767387635800,0.40475422,3120.5,3119.6,5.6345462]
[1767387635983,0.40475422,3120.5,3119.7,3.20543086]
[1767387636187,0.40475422,3120.5,3119.6,2.42900831]
[1767387636809,0.002,3120.7,3119.7,2.42900831]
[1767387637110,0.843,3120.7,3119.7,2.42900831]
[1767387637298,0.002,3120.9,3120.8,2.42900831]
[1767387638003,0.002,3120.9,3119.8,2.42900831]
[1767387638802,0.002,3120.9,3120.0,2.42900831]
[1767387639001,0.002,3120.9,3120.2,2.42900831]
[1767387640832,3.20620391,3120.9,3120.2,2.42900831]
[1767387641135,0.002,3120.9,3120.2,2.42900831]
[1767387641707,0.002,3120.9,3120.6,2.42900831]
[1767387642717,0.002,3120.9,3120.0,3.20509376]
[1767387642920,0.002,3120.9,3120.1,2.83361769]
[1767387648722,0.002,3120.9,3120.1,6.03863656]
[1767387648926,0.002,3120.9,3120.2,2.42900831]
[1767387649838,0.002,3120.9,3120.2,2.43070831]
[1767387653556,2.38149318,3120.9,3120.2,0.0017]
[1767387653764,0.002,3120.9,3120.2,2.43070831]
[1767387653971,0.002,3120.9,3120.2,3.03475204]
[1767387657092,0.002,3120.9,3120.3,2.42900831]
[1767387657243,2.37949318,3121.8,3120.3,2.42900831]
[1767387657244,3.20338277,3121.7,3120.8,2.42900831]
[1767387657551,7.24776554,3121.7,3120.8,2.42900831]
[1767387657970,3.20338277,3121.7,3120.8,2.42900831]
[1767387658165,4.04438277,3121.7,3120.8,2.42900831]
[1767387658765,3.20338277,3121.7,3120.8,2.67190914]
[1767387659072,7.24776554,3121.7,3120.8,2.67190914]
[1767387660655,9.67159112,3121.7,3120.8,2.67190914]
[1767387660855,2.42382558,3121.6,3120.8,2.67190914]
[1767387661664,2.42382558,3121.6,3120.4,2.41346276]
[1767387661995,2.42382558,3121.6,3120.2,3.25616276]
[1767387662880,2.42382558,3121.4,3120.2,3.25616276]
[1767387663403,2.42382558,3121.4,3120.2,0.0017]
[1767387664758,2.42382558,3121.2,3120.2,0.0017]
[1767387664980,2.42382558,3121.0,3120.2,0.0017]
[1767387666867,3.20420391,3120.9,3120.2,0.0017]
[1767387667694,3.20415106,3121.0,3120.2,2.41516276]
[1767387668060,3.20403457,3121.1,3120.2,2.41516276]
[1767387668260,6.40806914,3121.1,3120.2,2.97728979]
[1767387668569,6.40806914,3121.1,3120.2,2.41516276]
[1767387672283,3.20403457,3121.1,3120.2,2.41516276]
[1767387672504,5.62762689,3121.3,3120.3,2.41346276]
[1767387672798,4.0447256,3121.4,3120.3,2.41346276]
[1767387673087,4.0447256,3121.4,3120.5,2.41346276]
[1767387673401,0.002,3121.3,3120.5,2.41346276]
[1767387674463,0.002,3121.3,3120.4,0.56200268]
[1767387674464,0.002,3121.3,3120.7,2.41346276]
[1767387680317,0.002,3121.3,3120.5,4.04558869]
[1767387680503,0.002,3121.3,3120.6,0.70210541]
[1767387681432,0.002,3121.3,3120.7,2.41346276]
[1767387682425,0.002,3121.3,3120.6,3.11556817]
[1767387684095,0.002,3121.3,3120.7,2.41346276]
[1767387684305,0.002,3121.3,3120.6,0.70210541]
[1767387684507,2.42582558,3121.3,3120.6,0.70210541]
[1767387684708,2.42582558,3121.3,3120.7,0.39565682]
[1767387688436,5.62962015,3121.3,3120.7,0.39565682]
[1767387688813,2.42582558,3121.3,3120.7,0.39565682]
[1767387689949,2.42582558,3121.3,3120.5,3.25446276]
[1767387689950,2.46351652,3121.2,3120.5,3.25446276]
[1767387690118,2.46351652,3121.2,3120.5,2.41346276]
[1767387691215,5.66744051,3121.2,3120.5,2.41346276]
[1767387691742,2.46351652,3121.2,3120.5,2.41516276]
[1767387695123,5.66742173,3121.2,3120.5,2.41516276]
[1767387695322,2.46351652,3121.2,3120.5,2.7128793]
[1767387696654,2.46351652,3121.2,3120.5,2.7138793]
[1767387697362,0.002,3121.3,3120.5,2.7138793]
[1767387697363,3.20579399,3121.3,3120.5,2.7138793]
[1767387697728,5.66931051,3121.3,3120.5,2.7138793]
[1767387698456,8.8731045,3121.3,3120.5,2.7138793]
[1767387698631,2.46351652,3121.2,3120.5,2.46163948]
[1767387702242,5.66748898,3121.2,3120.5,2.46163948]
[1767387706237,2.46351652,3121.1,3120.5,0.0027]
[1767387706450,2.46351652,3120.9,3120.5,0.0027]
[1767387708166,5.66776581,3120.9,3120.5,0.0027]
[1767387708367,2.46351652,3120.8,3120.1,0.001]
[1767387708864,2.46351652,3120.8,3120.1,2.45993948]
[1767387711333,5.66787973,3120.8,3120.1,2.45993948]
[1767387711537,2.46351652,3120.8,3120.1,2.45993948]
[1767387712338,4.04491793,3121.2,3120.1,2.45993948]
[1767387712662,6.40983586,3121.2,3120.1,2.70593343]
[1767387712856,7.25083586,3121.2,3120.1,2.70593343]
[1767387713555,0.002,3121.2,3120.3,2.45893948]
[1767387713751,3.20590567,3121.2,3120.3,2.45893948]
[1767387713937,3.93116628,3121.2,3120.3,2.45893948]
[1767387719488,9.42033149,3121.2,3120.3,2.45893948]
[1767387719652,2.28525954,3121.1,3120.3,2.45893948]
[1767387720070,2.28525954,3120.9,3120.1,2.27409876]
[1767387720465,2.28525954,3120.9,3120.1,0.001]
[1767387720665,2.28525954,3120.7,3120.1,0.001]
[1767387720862,2.28525954,3120.6,3120.0,0.001]
[1767387721082,2.28525954,3120.3,3119.5,2.27409876]
[1767387721474,2.28525954,3120.6,3119.5,2.27409876]
[1767387721655,0.22852595,3120.5,3119.5,2.82207541]
[1767387722058,2.28525954,3120.9,3119.8,2.27309876]
[1767387722885,6.33025813,3121.1,3119.8,2.27309876]
[1767387723459,2.28525954,3120.8,3119.8,2.27309876]
[1767387723877,6.33025813,3121.1,3119.8,2.30515209]
[1767387724066,3.12625954,3121.1,3120.1,2.27309876]
[1767387724270,3.12625954,3121.1,3120.1,2.82092146]
[1767387724271,5.48926268,3121.1,3120.1,2.82092146]
[1767387724491,2.28525954,3121.1,3120.1,2.82092146]
[1767387724682,5.48929559,3121.1,3120.1,2.82092146]
[1767387724988,2.28525954,3121.1,3120.1,2.82092146]
[1767387725498,5.48927188,3121.1,3120.1,2.82092146]
[1767387725690,3.23906697,3121.1,3120.1,2.82092146]
[1767387726310,3.23906697,3121.1,3120.2,2.27309876]
[1767387727397,6.4430736,3121.1,3120.2,2.27309876]
[1767387727775,3.23906697,3121.1,3120.2,2.27309876]
[1767387728828,2.28525954,3121.0,3120.2,2.27309876]
[1767387728997,3.01386693,3121.0,3120.2,2.27309876]
[1767387729197,2.28525954,3120.9,3119.9,2.27309876]
[1767387729404,2.28525954,3120.9,3120.0,2.27309876]
[1767387729908,2.28525954,3120.9,3120.0,2.27409876]
[1767387730203,2.28525954,3120.8,3120.0,2.27409876]
[1767387732402,2.28525954,3120.7,3120.0,0.001]
[1767387732610,2.28525954,3120.5,3119.5,0.001]
[1767387733108,2.28525954,3120.5,3119.5,2.27409876]
[1767387733409,2.28525954,3120.5,3119.6,2.27309876]
[1767387733410,0.841,3120.5,3119.6,2.27309876]
[1767387733714,2.28525954,3120.7,3119.7,2.50371417]
[1767387734082,2.28525954,3120.7,3119.7,2.27309876]
[1767387735196,2.28525954,3120.5,3119.7,2.27309876]
[1767387739134,1.46281112,3120.8,3119.8,2.27309876]
[1767387739135,2.90707066,3120.8,3119.8,2.27309876]
[1767387739420,3.74807066,3120.8,3119.8,2.27309876]
[1767387739592,3.74807066,3120.8,3119.9,2.41881591]
[1767387740208,2.90707066,3120.8,3119.9,2.41881591]
[1767387741539,2.46304086,3121.0,3120.0,2.41881591]
[1767387742226,0.843,3121.1,3120.0,2.41881591]
[1767387742726,0.002,3121.1,3120.0,2.41881591]
[1767387743317,0.002,3121.1,3120.2,2.41881591]
[1767387743517,0.002,3121.1,3120.4,2.41881591]
[1767387743849,0.002,3121.1,3120.5,2.41881591]
[1767387747423,2.46504086,3121.1,3120.2,2.41881591]
[1767387748128,2.46504086,3121.1,3120.3,2.41881591]
[1767387750098,0.002,3121.1,3120.5,2.37425273]
[1767387750298,0.002,3121.1,3120.7,2.37425273]
[1767387754127,0.002,3121.1,3120.8,2.37425273]
[1767387754498,2.48397139,3121.6,3120.7,3.20440547]
[1767387754499,0.002,3121.6,3120.9,2.37425273]
[1767387754999,0.002,3121.1,3120.9,2.37425273]
[1767387755207,0.002,3121.6,3121.1,2.37425273]
[1767387757520,0.002,3121.6,3121.0,0.23742527]
[1767387758542,2.37810313,3121.6,3121.0,0.23742527]
[1767387758741,2.37810313,3121.6,3121.0,2.5911244]
[1767387759612,0.002,3121.6,3121.0,2.5911244]
[1767387759812,0.002,3121.6,3121.1,2.93323128]
[1767387767521,0.002,3121.6,3121.1,2.35369913]
[1767387771755,2.37690313,3122.1,3121.3,2.35369913]
[1767387771975,0.0008,3122.1,3121.3,2.35369913]
[1767387773072,0.0008,3122.1,3121.4,2.35369913]
[1767387773258,0.0008,3122.1,3121.6,2.35369913]
[1767387778337,2.37690313,3122.1,3121.5,0.55574203]
[1767387778865,2.37690313,3122.1,3121.2,2.35369913]
[1767387779232,2.37890313,3122.1,3121.2,2.35369913]
[1767387779433,2.37890313,3122.1,3121.2,5.55758477]
[1767387779641,2.37890313,3122.1,3121.3,2.47639698]
[1767387782975,2.46387757,3122.0,3121.3,2.47639698]
[1767387783143,2.46387757,3121.8,3121.1,2.47639698]
[1767387785783,0.56696647,3121.9,3121.1,2.47639698]
[1767387785956,4.04683993,3122.1,3121.1,2.47639698]
[1767387786172,6.5107175,3122.1,3121.1,2.47639698]
[1767387787477,0.002,3121.8,3121.1,2.47639698]
[1767387787673,0.002,3121.8,3121.1,3.04454588]
[1767387791386,0.0028,3122.1,3121.6,2.47639698]
[1767387791589,0.002,3122.4,3121.8,2.47639698]
[1767387791762,0.002,3122.4,3121.5,3.88375601]
[1767387791763,0.002,3122.4,3121.9,2.72403668]
[1767387798605,2.46587757,3122.4,3121.9,0.2476397]
[1767387801523,0.002,3122.4,3121.9,2.72403668]
[1767387806313,0.002,3122.4,3121.9,2.47639698]
[1767387806497,2.46587757,3122.4,3121.5,2.47639698]
[1767387808621,2.34158068,3122.3,3121.5,2.47639698]
[1767387812389,0.002,3122.4,3121.6,2.37691317]
[1767387815724,0.002,3122.4,3121.7,2.37691317]
[1767387816024,0.002,3122.4,3121.8,2.61460449]
[1767387820422,2.25886456,3122.4,3121.8,2.61460449]
[1767387820625,2.25886456,3122.4,3121.8,2.37691317]
[1767387821027,0.002,3122.4,3121.8,2.37691317]
[1767387822429,0.002,3122.4,3121.8,2.37791317]
[1767387823140,0.002,3122.4,3121.9,2.37691317]
[1767387824229,0.002,3122.9,3122.4,2.37691317]
[1767387824414,0.002,3123.1,3122.7,2.37691317]
[1767387825309,2.25886456,3123.1,3122.4,0.23769132]
[1767387825611,2.25886456,3123.1,3122.3,5.57966961]
[1767387826846,2.25886456,3123.1,3122.3,2.37691317]
[1767387827250,2.25886456,3123.1,3122.3,5.57967828]
[1767387827543,2.25886456,3123.1,3122.4,2.37691317]
[1767387833767,2.25886456,3123.1,3122.2,3.20283744]
[1767387833768,2.25886456,3123.1,3122.1,5.57984717]
[1767387834051,2.25886456,3123.1,3122.2,0.64198472]
[1767387834363,2.25686456,3122.8,3122.1,2.37691317]
[1767387834547,2.25686456,3122.8,3121.9,2.37691317]
[1767387834927,2.25686456,3122.8,3122.0,2.37691317]
[1767387835752,2.25686456,3122.6,3122.0,2.37691317]
[1767387837456,2.25686456,3122.6,3122.0,2.61470449]
[1767387838672,2.25686456,3122.6,3121.8,0.001]
[1767387838847,2.25686456,3122.5,3121.8,2.37791317]
[1767387839855,2.46891602,3122.0,3121.5,0.001]
[1767387840763,3.88375601,3122.1,3121.0,2.3285714]
[1767387840764,2.46891602,3121.8,3121.0,2.3285714]
[1767387841080,2.79980762,3121.7,3121.0,0.001]
[1767387841847,2.46891602,3121.5,3121.0,0.001]
[1767387843152,2.46891602,3121.8,3121.0,2.3285714]
[1767387843352,2.46891602,3122.3,3121.1,2.3275714]
[1767387843871,5.67178579,3122.2,3121.1,2.3275714]
[1767387844072,2.46891602,3122.2,3121.3,2.3275714]
[1767387847282,5.67179638,3122.2,3121.3,2.3275714]
[1767387848290,5.67179638,3122.2,3121.3,2.3285714]
[1767387852145,5.6717871,3122.2,3121.3,2.3285714]
[1767387852566,2.46891602,3122.1,3121.3,0.001]
[1767387852788,2.46891602,3122.0,3121.3,0.001]
[1767387853295,2.46891602,3122.0,3121.3,2.3285714]
[1767387863988,5.67199326,3122.0,3121.3,2.3285714]
[1767387864188,2.46891602,3121.9,3121.3,2.3285714]
[1767387869585,2.46891602,3121.9,3121.3,0.001]
[1767387869794,3.03611574,3121.9,3121.3,0.001]
[1767387870607,3.03611574,3121.9,3121.3,2.48018563]
[1767387870905,2.46891602,3121.9,3121.3,2.48018563]
[1767387872399,2.46891602,3121.9,3121.3,0.001]
[1767387873421,2.39456207,3121.8,3121.3,0.001]
[1767387876225,2.39456207,3121.7,3120.7,2.47918563]
[1767387876376,2.39456207,3121.5,3120.7,2.47918563]
[1767387877484,2.39456207,3121.4,3120.5,2.48018563]
[1767387878215,2.39456207,3121.4,3121.3,0.001]
[1767387878401,2.39456207,3121.4,3120.5,2.48018563]
[1767387879518,2.39456207,3121.3,3120.5,2.48018563]
[1767387879685,0.55982631,3121.2,3120.5,2.48018563]
[1767387879884,2.39456207,3121.3,3120.5,2.48018563]
[1767387880187,2.39456207,3121.3,3120.6,5.68368896]
[1767387880379,3.23556207,3121.5,3120.7,2.47918563]
[1767387881808,2.39456207,3121.4,3120.7,2.47918563]
[1767387886549,2.95434922,3121.6,3120.8,2.47918563]
[1767387886724,0.55978715,3121.6,3120.8,2.47918563]
[1767387886913,2.39456207,3121.8,3120.8,2.47918563]
[1767387887612,2.39456207,3121.7,3120.8,2.47918563]
[1767387888806,2.39456207,3121.7,3120.8,5.68346419]
[1767387889628,2.39456207,3121.7,3120.9,2.47918563]
[1767387892227,5.59795765,3121.7,3120.9,2.47918563]
[1767387892411,2.95435783,3121.6,3120.9,2.47918563]
[1767387893231,2.39456207,3121.5,3120.6,2.48018563]
[1767387893434,2.39456207,3121.5,3120.9,0.001]
[1767387895037,2.39456207,3121.5,3120.6,0.001]
[1767387895532,2.39456207,3121.5,3120.6,2.48018563]
[1767387895732,3.01035194,3121.4,3120.6,2.48018563]
[1767387896028,2.39456207,3121.3,3120.6,2.48018563]
[1767387898106,2.39259386,3121.3,3120.6,2.48018563]
[1767387902016,2.33042626,3121.2,3120.6,0.001]
[1767387902215,2.88385316,3121.1,3120.5,0.001]
[1767387902422,2.88385316,3121.1,3120.3,0.001]
[1767387904165,2.33042626,3120.9,3120.3,0.001]
[1767387904848,2.33042626,3120.9,3120.0,2.41407015]
[1767387904849,2.33042626,3120.9,3120.0,0.001]
[1767387905048,2.33042626,3120.7,3120.0,0.001]
[1767387905342,0.55345275,3120.8,3120.1,2.41307015]
[1767387905656,2.33042626,3121.1,3120.3,2.41307015]
[1767387906139,2.33042626,3121.0,3120.3,2.41307015]
[1767387906442,2.33042626,3121.0,3120.1,2.41307015]
[1767387907652,2.33042626,3121.0,3120.0,0.001]
[1767387908151,2.33042626,3120.8,3120.0,0.001]
[1767387908362,2.33042626,3120.6,3120.0,0.001]
[1767387910848,2.33042626,3120.5,3120.0,0.001]
[1767387911951,0.55346302,3120.7,3120.0,2.41407015]
[1767387912249,0.841,3120.7,3120.0,2.41407015]
[1767387912626,3.17142626,3120.7,3120.0,2.41407015]
[1767387912816,2.33042626,3120.6,3120.0,0.001]
[1767387913030,2.33042626,3120.4,3119.8,0.001]
[1767387915423,5.53514384,3120.4,3119.8,0.001]
[1767387915720,2.33042626,3120.2,3119.8,0.001]
[1767387916052,2.33042626,3120.1,3119.6,0.001]
[1767387916228,2.33042626,3120.1,3119.5,0.001]
[1767387920143,4.7286427,3120.2,3119.5,2.41407015]
[1767387920144,0.841,3120.2,3119.5,2.41407015]
[1767387920349,2.33042626,3120.5,3119.5,2.97625984]
[1767387921428,2.33042626,3120.5,3119.6,3.20553917]
[1767387921630,2.33042626,3120.5,3119.7,2.41307015]
[1767387922059,2.33042626,3121.2,3119.7,2.41307015]
[1767387922236,0.841,3121.1,3119.7,2.41307015]
[1767387922432,2.64756889,3121.0,3119.9,2.41307015]
[1767387923460,2.33042626,3120.9,3120.0,2.41307015]
[1767387924363,3.17142626,3120.9,3120.0,2.41307015]
[1767387925167,0.002,3120.8,3120.0,2.41307015]
[1767387926265,0.002,3120.8,3120.1,2.41307015]
[1767387927767,0.002,3120.8,3120.2,2.40555846]
[1767387928263,0.002,3120.8,3120.3,2.40555846]
[1767387931268,0.002,3120.8,3120.3,5.61036085]
[1767387931962,0.002,3120.8,3120.3,2.40555846]
[1767387932367,0.002,3120.8,3120.3,5.6103617]
[1767387932572,0.002,3120.8,3120.3,2.40555846]
[1767387932762,0.002,3120.8,3120.3,3.37525757]
[1767387935446,0.002,3120.8,3120.3,6.580042]
[1767387935647,0.002,3120.8,3120.4,2.37127828]
[1767387938249,2.37968562,3120.6,3119.8,2.37127828]
[1767387938446,2.37968562,3120.6,3119.6,2.37127828]
[1767387938447,2.70195418,3120.6,3119.6,2.37127828]
[1767387938665,2.70195418,3120.6,3119.7,2.37127828]
[1767387938866,0.841,3120.5,3119.7,2.37127828]
[1767387939117,2.70195418,3120.6,3119.8,2.37127828]
[1767387939118,0.32226856,3120.6,3119.8,2.37127828]
[1767387939288,0.002,3120.8,3120.2,2.37127828]
[1767387941056,0.002,3120.8,3120.4,2.37127828]
[1767387943485,0.002,3120.8,3120.5,5.57589292]
[1767387943683,0.002,3120.8,3120.5,2.37127828]
[1767387944065,0.841,3121.2,3120.5,2.37127828]
[1767387944476,0.002,3120.8,3120.5,2.37127828]
[1767387944677,0.841,3121.2,3120.5,2.37127828]
[1767387944877,1.16306856,3121.2,3120.5,2.37127828]
[1767387946061,0.32206856,3121.2,3120.6,2.37127828]
[1767387946279,3.22068562,3121.5,3120.8,2.37127828]
[1767387946861,2.37968562,3121.5,3120.8,2.37127828]
[1767387947061,0.841,3121.6,3120.8,2.37127828]
[1767387947467,3.22068562,3121.6,3120.8,2.37127828]
[1767387948368,2.37968562,3121.5,3120.8,2.37127828]
[1767387949276,0.002,3121.7,3121.1,2.37127828]
[1767387949476,2.38168562,3121.7,3120.9,3.31760723]
[1767387949661,2.38168562,3121.7,3121.0,2.37127828]
[1767387950482,2.38168562,3121.7,3120.6,2.37127828]
[1767387950684,2.37968562,3121.5,3120.6,2.86220111]
[1767387951079,2.37968562,3121.5,3120.8,3.20428149]
[1767387952396,2.37968562,3121.5,3120.7,5.57568754]
[1767387952894,2.37968562,3121.5,3120.8,2.37127828]
[1767387954177,0.841,3121.6,3121.0,2.37127828]
[1767387955496,3.22068562,3121.6,3121.0,2.37127828]
[1767387956470,3.22068562,3121.6,3121.0,5.57537533]
[1767387956680,3.22068562,3121.6,3121.0,2.37127828]
[1767387957918,2.37968562,3121.5,3120.8,3.20425508]
[1767387958211,2.37968562,3121.5,3120.7,5.57564571]
[1767387958414,2.37968562,3121.5,3120.7,6.89152753]
[1767387958984,2.37968562,3121.5,3120.8,0.001]
[1767387961217,2.37968562,3121.5,3120.8,2.28365961]
[1767387964498,2.37968562,3121.5,3120.8,0.001]
[1767387964698,2.37968562,3121.5,3120.8,3.20529193]
[1767387965028,2.37968562,3121.5,3120.8,5.48795154]
[1767387965385,2.37968562,3121.5,3120.8,2.28365961]
[1767387966229,3.22068562,3121.5,3120.8,2.28365961]
[1767387967322,2.49576116,3121.4,3120.8,0.001]
[1767387968215,2.49576116,3121.2,3120.0,2.28265961]
[1767387968384,2.49576116,3121.2,3120.1,2.28265961]
[1767387968715,2.49576116,3121.0,3120.1,2.28265961]
[1767387970510,2.49576116,3120.9,3119.9,2.28265961]
[1767387971711,2.49576116,3120.9,3119.7,2.28265961]
[1767387971911,2.49576116,3120.7,3119.7,5.48808846]
[1767387972216,2.49576116,3120.5,3120.0,0.001]
[1767387973821,0.841,3120.6,3120.0,2.28365961]
[1767387977325,0.56998783,3120.8,3120.0,2.28365961]
[1767387977619,0.841,3120.7,3120.0,2.28365961]
[1767387977820,0.841,3120.7,3120.1,2.28265961]
[1767387978007,2.49576116,3120.9,3120.1,2.28265961]
[1767387978207,0.841,3120.9,3120.1,2.28265961]
[1767387982715,2.49576116,3120.8,3120.1,2.28265961]
[1767387982910,0.65409704,3120.7,3120.1,2.28265961]
[1767387987546,2.39903384,3120.6,3120.0,0.001]
[1767387987758,2.39903384,3120.6,3119.5,0.001]
[1767387987958,2.39903384,3120.6,3119.5,2.29693634]
[1767387988159,2.39903384,3121.2,3120.0,2.29593634]
[1767387988350,2.39903384,3121.2,3119.9,3.20517438]
[1767387988351,3.24003384,3121.1,3120.2,2.29593634]
[1767387988669,0.841,3121.0,3120.2,2.29593634]
[1767387989061,0.841,3120.9,3120.2,2.29593634]
[1767387989772,0.002,3121.5,3120.3,2.27376288]
[1767387989974,0.002,3121.8,3120.7,3.88740418]
[1767387990159,0.843,3121.8,3121.2,2.27376288]
[1767387990354,0.002,3121.8,3121.2,2.27376288]
[1767387990540,0.843,3121.8,3121.2,2.27376288]
[1767387994977,0.002,3121.8,3121.2,2.27376288]
[1767387995276,0.841,3121.7,3121.2,2.27376288]
[1767387995475,0.002,3121.8,3121.4,2.27376288]
[1767387997864,0.002,3121.7,3121.4,2.27376288]
[1767387998771,0.002,3121.8,3121.4,2.27376288]
[1767387999077,0.002,3122.0,3121.6,2.27376288]
[1767388002082,0.002,3122.0,3121.2,3.20385368]
[1767388002083,2.44454849,3122.0,3121.2,2.27376288]
[1767388002280,2.44454849,3122.0,3121.3,2.82153397]
[1767388002893,2.44454849,3122.0,3121.3,0.54777109]
[1767388003094,2.44454849,3122.0,3121.0,6.31883624]
[1767388003251,2.44454849,3122.0,3121.1,2.27376288]
[1767388007586,2.44254849,3121.9,3121.1,2.27376288]
[1767388012717,2.44454849,3121.9,3121.1,2.27376288]
[1767388016253,2.44454849,3121.9,3121.2,2.27376288]
[1767388016461,0.002,3121.9,3121.2,2.82163253]
[1767388017544,0.002,3121.9,3121.2,2.27376288]
[1767388022558,2.29611245,3121.9,3121.2,2.27376288]
[1767388024425,2.29611245,3121.9,3121.1,0.001]
[1767388024644,2.29411245,3121.8,3121.1,0.001]
[1767388025571,2.29411245,3121.7,3121.1,0.001]
[1767388025775,2.29411245,3121.5,3121.1,0.001]
[1767388027471,5.4977048,3121.5,3121.1,0.001]
[1767388028841,2.29411245,3121.5,3121.1,0.001]
[1767388029362,5.49771937,3121.5,3121.1,0.001]
[1767388035384,8.70132629,3121.5,3121.1,0.001]
[1767388035590,2.29411245,3121.3,3121.1,0.001]
[1767388037087,0.90148375,3121.4,3121.1,0.001]
[1767388037289,0.31351125,3121.6,3121.1,2.39671057]
[1767388037497,0.002,3121.8,3121.1,2.39671057]
[1767388037696,0.002,3121.8,3121.3,2.39571057]
[1767388043700,0.002,3121.8,3121.1,2.39671057]
[1767388046673,2.29611245,3121.8,3121.1,0.001]
[1767388046872,2.29411245,3121.6,3121.1,0.001]
[1767388049903,0.55012957,3121.7,3121.1,0.001]
[1767388050095,0.55012957,3121.7,3121.1,2.31489701]